fUST/lending_fUST_20250817
["ID","MTS","AMOUNT","RATE_DAILY","PERIOD"]
[379871311,1755426773740,480.0,0.00019566,2]
[379871312,1755426789340,361.95,0.0001928,2]
[379871313,1755426790919,603.28,0.00019565,2]
[379871314,1755426807942,480.0,0.00019565,2]
[379871315,1755426809702,500.0,0.00018986,2]
[379871316,1755426841366,480.0,0.00019565,2]
[379871317,1755426871245,357.35,0.0001934,2]
[379871318,1755426898137,661.09651304,0.00019537,2]
[379871319,1755426912201,2332.18,0.00019565,2]
[379871320,1755426915163,480.0,0.00019565,2]
[379871321,1755426916962,160.0,0.00019543,3]
[379871322,1755426923301,585.31892363,0.00019536,2]
[379871323,1755426931471,1629.41,0.00019565,2]
[379871324,1755426935773,480.0,0.00019565,2]
[379871325,1755426961210,352.8,0.00019339,2]
[379871326,1755426964262,268.2490873,0.000189,2]
[379871327,1755427042768,348.31,0.0001928,2]
[379871328,1755427054083,200.0,0.00021,30]
[379871329,1755427054487,216.5,0.00021,30]
[379871330,1755427083073,2286.33,0.00019565,2]
[379871331,1755427116676,480.0,0.00019565,2]
[379871332,1755427125153,343.88,0.00019281,2]
[379871333,1755427144244,578.45944891,0.00019536,2]
[379871334,1755427201345,572.04240731,0.00019539,2]
[379871335,1755427213890,339.5,0.00019269,2]
[379871336,1755427265824,228.83272487,0.000189,2]
[379871337,1755427297227,335.18,0.00019281,2]
[379871338,1755427381145,330.91,0.00019272,2]
[379871339,1755427416583,506.15201784,0.00019528,2]
[379871340,1755427422330,266.758337,0.00019037,2]
[379871341,1755427422705,161.83696817,0.00019038,2]
[379871342,1755427473777,326.7,0.0001928,2]
[379871343,1755427542308,457.63392584,0.00019538,2]
[379871344,1755427558269,322.54,0.00019273,2]
[379871345,1755427567316,152.55514991,0.000189,2]
[379871346,1755427609072,4510.30000524,0.0001954,2]
[379871347,1755427641128,318.44,0.00019281,2]
[379871348,1755427684260,4184.81264803,0.00019539,2]
[379871349,1755427701561,442.88301561,0.00019525,2]
[379871350,1755427713340,1694.3721415,0.00018627,2]
[379871351,1755427723328,314.38,0.00019267,2]
[379871353,1755427804790,310.38,0.00019282,2]
[379871354,1755427809470,404.693891,0.00013699,2]
[379871360,1755427831899,-300.0,0.00019623,2]
[379871362,1755427831908,-26.03283155,0.00019623,2]
[379871364,1755427831952,-273.96716845,0.00019623,2]
[379871365,1755427831961,-300.0,0.00019623,2]
[379871366,1755427831971,-300.0,0.00019623,2]
[379871367,1755427831980,-300.0,0.00019623,2]
[379871368,1755427831989,-1200.0,0.00019623,2]
[379871369,1755427831999,-1200.0,0.00019624,2]
[379871370,1755427832008,-480.0,0.00019624,2]
[379871371,1755427832017,-475.12638792,0.00019624,2]
[379871372,1755427832026,-480.0,0.00019624,2]
[379871373,1755427832036,-480.0,0.00019624,2]
[379871374,1755427832046,-480.0,0.00019624,2]
[379871375,1755427832056,-480.0,0.00019624,2]
[379871376,1755427832065,-480.0,0.00019624,2]
[379871377,1755427832074,-1557.77,0.00019624,2]
[379871378,1755427832085,-461.72528166,0.00019624,2]
[379871379,1755427832094,-480.0,0.00019624,2]
[379871380,1755427832104,-480.0,0.00019624,2]
[379871382,1755427832113,-2306.24,0.00019625,3]
[379871384,1755427832123,-21162.41422299,0.00019625,2]
[379871386,1755427832132,-412.06784256,0.00019625,2]
[379871388,1755427832141,-500.0,0.00019625,2]
[379871390,1755427832150,-500.0,0.00019625,2]
[379871392,1755427832159,-500.0,0.00019625,2]
[379871394,1755427832168,-500.0,0.00019625,2]
[379871396,1755427832177,-500.0,0.00019625,2]
[379871398,1755427832186,-500.0,0.00019625,2]
[379871399,1755427832196,-500.0,0.00019625,2]
[379871401,1755427832205,-500.0,0.00019625,2]
[379871403,1755427832215,-500.0,0.00019625,2]
[379871405,1755427832225,-500.0,0.00019625,2]
[379871407,1755427832234,-500.0,0.00019625,2]
[379871409,1755427832245,-500.0,0.00019625,2]
[379871411,1755427832255,-500.0,0.00019625,2]
[379871412,1755427832265,-500.0,0.00019625,2]
[379871413,1755427832276,-500.0,0.00019625,2]
[379871414,1755427832289,-500.0,0.00019625,2]
[379871415,1755427832298,-500.0,0.00019625,2]
[379871416,1755427832307,-500.0,0.00019625,2]
[379871417,1755427832316,-500.0,0.00019625,2]
[379871418,1755427832327,-500.0,0.00019625,2]
[379871419,1755427832336,-500.0,0.00019625,2]
[379871420,1755427832346,-528.18639007,0.00019625,2]
[379871421,1755427832355,-422.33938017,0.00019625,2]
[379871422,1755427832364,-500.0,0.00019625,2]
[379871423,1755427832374,-500.0,0.00019625,2]
[379871424,1755427832383,-500.0,0.00019625,2]
[379871425,1755427832393,-500.0,0.00019625,2]
[379871426,1755427832402,-500.0,0.00019625,2]
[379871427,1755427832411,-500.0,0.00019625,2]
[379871428,1755427832420,-455.9819666,0.00019625,2]
[379871429,1755427832433,-385.95723365,0.00019625,2]
[379871430,1755427832442,-459.56239374,0.00019625,2]
[379871431,1755427832452,-500.0,0.00019625,2]
[379871432,1755427832461,-500.0,0.00019625,2]
[379871433,1755427832472,-500.0,0.00019625,2]
[379871434,1755427832482,-500.0,0.00019625,2]
[379871435,1755427832491,-500.0,0.00019625,2]
[379871436,1755427832500,-500.0,0.00019625,2]
[379871437,1755427832509,-500.0,0.00019625,2]
[379871438,1755427832519,-500.0,0.00019625,2]
[379871439,1755427832528,-500.0,0.00019625,2]
[379871440,1755427832537,-169.49299507,0.00019625,2]
[379871441,1755427832546,-500.0,0.00019625,2]
[379871442,1755427832556,-465.4550692,0.00019625,2]
[379871443,1755427832565,-500.0,0.00019625,2]
[379871444,1755427832574,-500.0,0.00019625,2]
[379871445,1755427832583,-500.0,0.00019625,2]
[379871446,1755427832593,-500.0,0.00019625,2]
[379871447,1755427832603,-500.0,0.00019625,2]
[379871448,1755427832612,-213.5009472,0.00019625,2]
[379871449,1755427832621,-500.0,0.00019625,2]
[379871450,1755427832630,-500.0,0.00019625,2]
[379871451,1755427832640,-500.0,0.00019625,2]
[379871452,1755427832756,-500.0,0.00019625,2]
[379871453,1755427832797,-500.0,0.00019625,2]
[379871454,1755427832807,-500.0,0.00019625,2]
[379871455,1755427832816,-500.0,0.00019625,2]
[379871456,1755427832827,-209.83215297,0.00019625,2]
[379871457,1755427832837,-500.0,0.00019625,2]
[379871458,1755427832847,-217.695507,0.00019625,2]
[379871460,1755427837918,-480.0,0.00019626,2]
[379871461,1755427837928,-480.0,0.00019626,2]
[379871462,1755427837938,-474.18883861,0.00019626,2]
[379871463,1755427837947,-1281.19,0.00019626,2]
[379871464,1755427837957,-480.0,0.00019626,2]
[379871465,1755427837967,-480.0,0.00019626,2]
[379871466,1755427837976,-480.0,0.00019626,2]
[379871467,1755427837985,-480.0,0.00019626,2]
[379871468,1755427837995,-480.0,0.00019626,2]
[379871469,1755427838004,-480.0,0.00019626,2]
[379871470,1755427838014,-480.0,0.00019626,2]
[379871471,1755427838023,-480.0,0.00019626,2]
[379871472,1755427838033,-480.0,0.00019626,2]
[379871473,1755427838042,-613.78,0.00019626,2]
[379871474,1755427838051,-250.41211554,0.00019626,2]
[379871475,1755427838064,-229.58788446,0.00019626,2]
[379871476,1755427838073,-1399.59,0.00019626,2]
[379871477,1755427838082,-480.0,0.00019626,2]
[379871478,1755427838091,-2203.94,0.00019626,2]
[379871479,1755427838100,-480.0,0.00019626,2]
[379871480,1755427838109,-480.0,0.00019626,2]
[379871481,1755427838118,-480.0,0.00019626,2]
[379871482,1755427838127,-480.0,0.00019626,2]
[379871483,1755427838136,-1238.42,0.00019626,2]
[379871484,1755427838145,-160.71212329,0.00019626,2]
[379871485,1755427838160,-402.42443321,0.00019626,2]
[379871486,1755427838170,-261.97143277,0.00019626,2]
[379871487,1755427838181,-218.02856723,0.00019626,2]
[379871488,1755427838191,-480.0,0.00019626,2]
[379871489,1755427838200,-412.88962671,0.00019626,2]
[379871490,1755427838211,-67.11037329,0.00019626,2]
[379871491,1755427838221,-2253.84559232,0.00019626,2]
[379871492,1755427838232,-594.98404894,0.00019626,2]
[379871493,1755427838243,-561.84778779,0.00019626,2]
[379871494,1755427838253,-4.26257095,0.00019626,2]
[379871495,1755427838262,-719.47,0.00019626,2]
[379871496,1755427838272,-313.10417615,0.00019626,2]
[379871538,1755427839918,-166.89582385,0.00019626,2]
[379871539,1755427839927,-480.0,0.00019626,2]
[379871542,1755427839937,-480.0,0.00019626,2]
[379871544,1755427839947,-480.0,0.00019626,2]
[379871546,1755427839956,-262.08639041,0.00019626,2]
[379872085,1755427845909,-22.17743134,0.00019626,2]
[379872088,1755427845919,-480.0,0.00019626,2]
[379872090,1755427845928,-480.0,0.00019626,2]
[379872092,1755427845937,-480.0,0.00019626,2]
[379872094,1755427845947,-480.0,0.00019626,2]
[379872096,1755427845956,-697.75,0.00019626,2]
[379872097,1755427845965,-168.37256866,0.00019626,2]
[379872888,1755427861154,666.0,0.00019178,2]
[379872889,1755427868483,150.0,0.000189,2]
[379872890,1755427883030,738.5923711,0.00019538,2]
[379872891,1755427888124,306.43,0.0001928,2]
[379872892,1755427893984,5000.0,0.00019178,2]
[379872898,1755427966234,193.761316,0.00018626,2]
[379872899,1755427973568,302.53,0.0001928,2]
[379872900,1755427990535,500.0,0.00018986,2]
[379872901,1755428010866,20283.50778061,0.00019538,2]
[379872902,1755428061368,298.68,0.00019282,2]
[379872903,1755428124571,3006.86667016,0.00019538,2]
[379872904,1755428144637,294.88,0.00019281,2]
[379872905,1755428169895,150.0,0.000189,2]
[379872906,1755428200357,32851.0492277,0.00018625,2]
[379872907,1755428223588,807.36308693,0.00019526,2]
[379872908,1755428227049,291.13,0.00019281,2]
[379872909,1755428244250,4071.27,0.00021,90]
[379872910,1755428264286,250.0,0.00019417,2]
[379872911,1755428308706,287.42,0.00019282,2]
[379872915,1755428379843,2004.5777801,0.00019537,2]
[379872916,1755428390766,283.76,0.00019281,2]
[379872917,1755428414811,107102.66816486,0.00019526,2]
[379872918,1755428414836,10148.23306362,0.00019526,2]
[379872919,1755428414858,20000.0,0.00019526,2]
[379872920,1755428414880,20000.0,0.00019526,2]
[379872921,1755428414901,20000.0,0.00019526,2]
[379872922,1755428414924,20000.0,0.00019526,2]
[379872923,1755428414949,20000.0,0.00019526,2]
[379872924,1755428414977,20000.0,0.00019526,2]
[379872925,1755428415002,20000.0,0.00019526,2]
[379872926,1755428415024,20000.0,0.00019526,2]
[379872927,1755428415045,20000.0,0.00019526,2]
[379872928,1755428415067,20000.0,0.00019526,2]
[379872929,1755428415088,20000.0,0.00019526,2]
[379872930,1755428415109,20000.0,0.00019526,2]
[379872931,1755428415132,12749.09877152,0.00019526,2]
[379872932,1755428433365,5000.0,0.00019551,2]
[379872933,1755428449403,2250.90122848,0.00019551,2]
[379872934,1755428449434,2749.09877152,0.00019551,2]
[379872935,1755428465708,5000.0,0.00019551,2]
[379872936,1755428471008,150.0,0.000189,2]
[379872937,1755428472273,241.27660106,0.00019551,2]
[379872938,1755428474055,282.06,0.00019282,2]
[379872939,1755428482432,5000.0,0.00019551,2]
[379872940,1755428498362,5000.0,0.00019551,2]
[379872941,1755428515687,1577.56462742,0.00019551,2]
[379872942,1755428515709,3422.43537258,0.00019551,2]
[379872944,1755428519122,600.0,0.00018986,2]
[379872950,1755428532362,5000.0,0.00019551,2]
[379872953,1755428539375,203.3112737,0.00019522,2]
[379872955,1755428548497,5000.0,0.00019551,2]
[379872956,1755428555178,278.47,0.00019282,2]
[379872958,1755428564679,2890.75649503,0.00019526,2]
[379872960,1755428572136,2605.02685869,0.00019526,2]
[379872961,1755428572158,20000.0,0.00019526,2]
[379872962,1755428572180,20000.0,0.00019526,2]
[379872963,1755428572203,20000.0,0.00019526,2]
[379872964,1755428572224,20000.0,0.00019526,2]
[379872965,1755428572246,19763.18380937,0.00019526,2]
[379872966,1755428578884,236.81619063,0.00019551,2]
[379872967,1755428578906,4763.18380937,0.00019551,2]
[379872970,1755428594967,5000.0,0.00019551,2]
[379872971,1755428596139,302.48577423,0.00019453,2]
[379872974,1755428610966,5000.0,0.00019551,2]
[379872975,1755428623954,351.416911,0.00019026,2]
[379872978,1755428624306,908.70292866,0.00019028,2]
[379872979,1755428624679,403.782913,0.00019032,2]
[379872980,1755428626561,3270.42766374,0.00019551,2]
[379872981,1755428626584,1729.57233626,0.00019551,2]
[379872983,1755428635862,1336.38518674,0.00019526,2]
[379872984,1755428638538,274.93,0.00019283,2]
[379872987,1755428642844,5000.0,0.00019551,2]
[379872989,1755428659616,5000.0,0.00019551,2]
[379872990,1755428675874,5000.0,0.00019551,2]
[379872994,1755428692997,1659.112477,0.00019551,2]
[379872995,1755428693022,3340.887523,0.00019551,2]
[379872996,1755428709352,5000.0,0.00019551,2]
[379872997,1755428720508,271.43,0.00019282,2]
[379872998,1755428725287,5000.0,0.00019551,2]
[379872999,1755428741578,5000.0,0.00019551,2]
[379873000,1755428743786,817.983922,0.00013699,2]
[379873001,1755428758976,569.698555,0.00019551,2]
[379873002,1755428758999,4430.301445,0.00019551,2]
[379873003,1755428772634,1166.95894094,0.000189,2]
[379873004,1755428775831,5000.0,0.00019551,2]
[379873005,1755428785605,600.0,0.00018986,2]
[379873006,1755428793673,5000.0,0.00019551,2]
[379873009,1755428802047,267.97,0.00019282,2]
[379873011,1755428810739,3534.76961406,0.00019551,2]
[379873012,1755428810761,1465.23038594,0.00019551,2]
[379873014,1755428827167,5000.0,0.00019551,2]
[379873015,1755428874210,5336.0892766,0.00018615,2]
[379873016,1755428887629,264.56,0.00019282,2]
[379873017,1755428891103,890.92345782,0.00019526,2]
[379873018,1755428905537,2312.60519604,0.00019524,2]
[379873022,1755428924034,476.859884,0.00018615,2]
[379873024,1755428927399,1000.0,0.00019526,2]
[379873032,1755428971706,265.01,0.00019282,2]
[379873040,1755429014309,2355.6500212,0.00018617,2]
[379873060,1755429032034,-151.0,0.000196,2]
[379873061,1755429032043,-2000.0,0.000196,2]
[379873062,1755429032053,-300.0,0.00019612,2]
[379873063,1755429032063,-222.0,0.00019612,2]
[379873064,1755429032073,-1200.0,0.00019612,2]
[379873065,1755429032083,-1854.63380227,0.00019612,2]
[379873066,1755429032093,-480.0,0.00019613,2]
[379873067,1755429032103,-480.0,0.00019613,2]
[379873068,1755429032112,-480.0,0.00019613,2]
[379873070,1755429032121,-480.0,0.00019613,2]
[379873072,1755429032131,-1648.0,0.00019613,2]
[379873074,1755429032140,-462.96607304,0.00019613,2]
[379873076,1755429032149,-480.0,0.00019613,2]
[379873078,1755429032158,-300.0,0.00019613,2]
[379873080,1755429032167,-480.0,0.00019613,2]
[379873082,1755429032176,-480.0,0.00019613,2]
[379873084,1755429032186,-1309.8,0.00019613,2]
[379873086,1755429032195,-3454.46,0.00019613,3]
[379873088,1755429032204,-151.0,0.00019614,2]
[379873090,1755429032213,-500.0,0.00019614,2]
[379873092,1755429032222,-151.0,0.00019614,2]
[379873094,1755429032231,-500.0,0.00019614,2]
[379873096,1755429032241,-151.0,0.00019614,2]
[379873098,1755429032251,-151.0,0.00019614,2]
[379873100,1755429032260,-151.0,0.00019614,2]
[379873102,1755429032269,-500.0,0.00019614,2]
[379873104,1755429032279,-151.0,0.00019614,2]
[379873106,1755429032288,-151.0,0.00019614,2]
[379873108,1755429032297,-500.0,0.00019614,2]
[379873110,1755429032307,-500.0,0.00019614,2]
[379873112,1755429032316,-151.0,0.00019614,2]
[379873114,1755429032326,-500.0,0.00019614,2]
[379873125,1755429032472,-151.0,0.00019614,2]
[379873127,1755429032482,-500.0,0.00019614,2]
[379873129,1755429032492,-151.0,0.00019614,2]
[379873131,1755429032502,-151.0,0.00019614,2]
[379873133,1755429032512,-500.0,0.00019614,2]
[379873135,1755429032522,-156.04189223,0.00019614,2]
[379873137,1755429032531,-500.0,0.00019614,2]
[379873139,1755429032541,-300.0,0.00019614,2]
[379873141,1755429032551,-500.0,0.00019614,2]
[379873143,1755429032561,-300.0,0.00019614,2]
[379873145,1755429032570,-500.0,0.00019614,2]
[379873146,1755429032579,-302.64365837,0.00019614,2]
[379873148,1755429032589,-500.0,0.00019614,2]
[379873150,1755429032599,-500.0,0.00019614,2]
[379873152,1755429032608,-1000.0,0.00019614,2]
[379873154,1755429032617,-500.0,0.00019614,2]
[379873155,1755429032627,-500.0,0.00019614,2]
[379873157,1755429032636,-1000.0,0.00019614,2]
[379873159,1755429032647,-500.0,0.00019614,2]
[379873161,1755429032658,-500.0,0.00019614,2]
[379873163,1755429032667,-567.0,0.00019614,2]
[379873164,1755429032677,-17842.522448,0.00019614,2]
[379873165,1755429032686,-250.0,0.00019614,2]
[379873166,1755429032695,-154.94759747,0.00019614,2]
[379873167,1755429032705,-1001.86816157,0.00019615,2]
[379873168,1755429032713,-418.498,0.00019622,2]
[379873169,1755429032724,-480.0,0.00019622,2]
[379873170,1755429032733,-480.0,0.00019622,2]
[379873171,1755429032743,-480.0,0.00019622,2]
[379873172,1755429032752,-480.0,0.00019622,2]
[379873173,1755429032761,-480.0,0.00019622,2]
[379873174,1755429032770,-323.08221015,0.00019622,2]
[379873175,1755429032780,-765.28,0.00019622,2]
[379873176,1755429032789,-480.0,0.00019622,2]
[379873177,1755429032799,-480.0,0.00019622,2]
[379873178,1755429032808,-480.0,0.00019622,2]
[379873179,1755429032819,-480.0,0.00019622,2]
[379873180,1755429032828,-494.19,0.00019622,2]
[379873181,1755429032837,-480.0,0.00019622,2]
[379873182,1755429032847,-481.20441987,0.00019622,2]
[379873183,1755429032856,-480.0,0.00019622,2]
[379873184,1755429032865,-480.0,0.00019622,2]
[379873185,1755429032874,-1440.09,0.00019622,2]
[379873186,1755429032884,-2281.48,0.00019622,2]
[379873187,1755429032893,-480.0,0.00019622,2]
[379873188,1755429032902,-480.0,0.00019622,2]
[379873189,1755429032911,-480.0,0.00019622,2]
[379873190,1755429032920,-506.71098924,0.00019622,2]
[379873191,1755429032929,-332.32145193,0.00019622,2]
[379873192,1755429032939,-576.81017485,0.00019622,2]
[379873193,1755429032948,-480.0,0.00019622,2]
[379873194,1755429032957,-480.0,0.00019622,2]
[379873195,1755429032966,-1298.86,0.00019622,2]
[379873196,1755429032975,-480.0,0.00019622,2]
[379873197,1755429032984,-480.0,0.00019622,2]
[379873198,1755429032994,-390.70399461,0.00019622,2]
[379873199,1755429033003,-480.0,0.00019622,2]
[379873200,1755429033013,-460.0,0.00019622,2]
[379873201,1755429033022,-3473.52,0.00019622,2]
[379873202,1755429033032,-533.6,0.00019622,2]
[379873203,1755429033042,-480.0,0.00019622,2]
[379873204,1755429033052,-480.0,0.00019622,2]
[379873205,1755429033062,-480.0,0.00019622,2]
[379873206,1755429033072,-461.977182,0.00019622,2]
[379873207,1755429033082,-480.0,0.00019622,2]
[379873208,1755429033092,-647.5,0.00019622,2]
[379873209,1755429033103,-480.0,0.00019622,2]
[379873210,1755429033114,-815.22,0.00019622,2]
[379873211,1755429033123,-500.56,0.00019622,2]
[379873212,1755429033134,-480.0,0.00019622,2]
[379873213,1755429033144,-480.0,0.00019622,2]
[379873214,1755429033155,-480.0,0.00019622,2]
[379873215,1755429033164,-480.0,0.00019622,2]
[379873216,1755429033173,-480.0,0.00019622,2]
[379873217,1755429033184,-480.0,0.00019622,2]
[379873218,1755429033194,-480.0,0.00019622,2]
[379873219,1755429033203,-273.93945213,0.00019622,2]
[379873220,1755429033213,-460.0,0.00019623,2]
[379873221,1755429033223,-480.0,0.00019623,2]
[379873222,1755429033232,-480.0,0.00019623,2]
[379873223,1755429033242,-480.0,0.00019623,2]
[379873224,1755429033252,-480.0,0.00019623,2]
[379873225,1755429033261,-480.0,0.00019623,2]
[379873226,1755429033271,-480.0,0.00019623,2]
[379873227,1755429033281,-480.0,0.00019623,2]
[379873228,1755429033292,-460.0,0.00019623,2]
[379873229,1755429033302,-480.0,0.00019623,2]
[379873230,1755429033311,-480.0,0.00019623,2]
[379873231,1755429033321,-480.0,0.00019623,2]
[379873232,1755429033331,-480.0,0.00019623,2]
[379873233,1755429033341,-480.0,0.00019623,2]
[379873234,1755429033351,-460.0,0.00019623,2]
[379873235,1755429033362,-469.81961663,0.00019623,2]
[379873236,1755429033372,-480.0,0.00019623,2]
[379873237,1755429033383,-480.0,0.00019623,2]
[379873238,1755429033392,-480.0,0.00019623,2]
[379873239,1755429033402,-480.0,0.00019623,2]
[379873240,1755429033411,-480.0,0.00019623,2]
[379873241,1755429033422,-480.0,0.00019623,2]
[379873242,1755429033431,-480.0,0.00019623,2]
[379873243,1755429033441,-574.1,0.00019623,2]
[379873244,1755429033452,-1119.26,0.00019623,2]
[379873245,1755429033462,-498.51,0.00019623,2]
[379873246,1755429033472,-480.0,0.00019623,2]
[379873247,1755429033481,-480.0,0.00019623,2]
[379873248,1755429033492,-480.0,0.00019623,2]
[379873249,1755429033502,-480.0,0.00019623,2]
[379873250,1755429033514,-480.0,0.00019623,2]
[379873251,1755429033523,-480.0,0.00019623,2]
[379873252,1755429033533,-311.62743134,0.00019623,2]
[379873253,1755429033544,-480.0,0.00019623,2]
[379873254,1755429033553,-361.28607412,0.00019623,2]
[379873255,1755429033564,-587.32,0.00019623,2]
[379873256,1755429033573,-480.0,0.00019623,2]
[379873257,1755429033583,-480.0,0.00019623,2]
[379873258,1755429033592,-480.0,0.00019623,2]
[379873259,1755429033602,-500.0,0.00019623,2]
[379873260,1755429033612,-500.0,0.00019623,2]
[379873261,1755429033622,-1134.95,0.00019623,2]
[379873262,1755429033630,-480.0,0.00019623,2]
[379873263,1755429033641,-480.0,0.00019623,2]
[379873264,1755429033654,-480.0,0.00019623,2]
[379873265,1755429033664,-480.0,0.00019623,2]
[379873266,1755429033673,-480.0,0.00019623,2]
[379873267,1755429033683,-480.0,0.00019623,2]
[379873268,1755429033693,-480.0,0.00019623,2]
[379873269,1755429033703,-701.55,0.00019623,2]
[379873270,1755429033712,-480.0,0.00019623,2]
[379873271,1755429033723,-2297.97,0.00019623,2]
[379873272,1755429033733,-480.0,0.00019623,2]
[379873273,1755429033742,-480.0,0.00019623,2]
[379873274,1755429033752,-480.0,0.00019623,2]
[379873275,1755429033761,-480.0,0.00019623,2]
[379873276,1755429033771,-2508.69,0.00019623,2]
[379873277,1755429033780,-480.0,0.00019623,2]
[379873278,1755429033790,-480.0,0.00019623,2]
[379873279,1755429033799,-460.72692993,0.00019623,2]
[379873280,1755429033810,-480.0,0.00019623,2]
[379873281,1755429033820,-158.02387166,0.00019623,2]
[379873282,1755429033830,-480.0,0.00019623,2]
[379873283,1755429033840,-480.0,0.00019623,2]
[379873284,1755429033849,-460.94801275,0.00019623,2]
[379873285,1755429033860,-404.82673615,0.00019623,2]
[379873286,1755429033870,-480.0,0.00019623,2]
[379873287,1755429033880,-7625.82,0.00019623,2]
[379873288,1755429033890,-480.0,0.00019623,2]
[379873289,1755429033900,-480.0,0.00019623,2]
[379873290,1755429033910,-480.0,0.00019623,2]
[379873291,1755429033919,-480.0,0.00019623,2]
[379873292,1755429033930,-480.0,0.00019623,2]
[379873293,1755429033940,-480.0,0.00019623,2]
[379873294,1755429033951,-480.0,0.00019623,2]
[379873295,1755429033962,-500.0,0.00019623,2]
[379873296,1755429033972,-480.0,0.00019623,2]
[379873297,1755429033981,-480.0,0.00019623,2]
[379873298,1755429033991,-782.71,0.00019623,2]
[379873299,1755429034001,-480.0,0.00019623,2]
[379873300,1755429034011,-480.0,0.00019623,2]
[379873301,1755429034022,-480.0,0.00019623,2]
[379873302,1755429034032,-495.63,0.00019623,2]
[379873303,1755429034042,-480.0,0.00019623,2]
[379873304,1755429034052,-480.0,0.00019623,2]
[379873305,1755429034061,-511.82060205,0.00019623,2]
[379873306,1755429034071,-480.0,0.00019623,2]
[379873307,1755429034082,-480.0,0.00019623,2]
[379873308,1755429034093,-440.0,0.00019623,2]
[379873309,1755429034105,-706.13,0.00019623,2]
[379873310,1755429034116,-584.39,0.00019623,2]
[379873311,1755429034126,-500.0,0.00019623,2]
[379873312,1755429034137,-509.53280485,0.00019623,2]
[379873313,1755429034147,-480.0,0.00019623,2]
[379873314,1755429034157,-167.02097705,0.00019623,2]
[379873315,1755429034166,-480.0,0.00019623,2]
[379873316,1755429034176,-480.0,0.00019623,2]
[379873317,1755429034186,-480.0,0.00019623,2]
[379873318,1755429034196,-480.0,0.00019623,2]
[379873319,1755429034205,-480.0,0.00019623,2]
[379873320,1755429034214,-480.0,0.00019623,2]
[379873321,1755429034224,-480.0,0.00019623,2]
[379873322,1755429034233,-458.65067199,0.00019623,2]
[379873323,1755429034243,-480.0,0.00019623,2]
[379873324,1755429034252,-480.0,0.00019623,2]
[379873325,1755429034262,-480.0,0.00019623,2]
[379873326,1755429034272,-480.0,0.00019623,2]
[379873327,1755429034282,-480.0,0.00019623,2]
[379873328,1755429034291,-480.0,0.00019623,2]
[379873329,1755429034301,-480.0,0.00019623,2]
[379873330,1755429034311,-480.0,0.00019623,2]
[379873331,1755429034320,-480.0,0.00019623,2]
[379873332,1755429034330,-480.0,0.00019623,2]
[379873333,1755429034340,-480.0,0.00019623,2]
[379873334,1755429034350,-480.0,0.00019623,2]
[379873335,1755429034360,-480.0,0.00019623,2]
[379873336,1755429034371,-480.0,0.00019623,2]
[379873337,1755429034380,-480.0,0.00019623,2]